Cogmind - Beta 12 @@@ ROGUE MODE // 2023.06.04 @ 15:11:17 Player: Mr Goldstein Result: Destroyed by D-53 Grenadier with Mini Grenade Launcher Performance ------------- Evolutions (0) 0 Regions Visited (4) 800 Robots Destroyed (6) 30 Value Destroyed (90) 90 Prototype IDs (0) 0 Alien Tech Used (0) 0 Bonus (0) 0 TOTAL SCORE: 920 Bonus ------- None Cogmind --------- Core Integrity 0/250 Matter 253/300 Energy 99/100 System Corruption 0% Temperature Cool (0) Movement Core (50) Location -9/Mines Parts ------- > --- POWER (1) -------- (None) > --- PROPULSION (2) --- (None) > --- UTILITY (2) ------ (None) > --- WEAPON (2) ------- (None) > --- INVENTORY (5) ---- Rocket Launcher Rocket Launcher Rocket Launcher Rocket Launcher Peak State ------------ > --- POWER ------------ (None) > --- PROPULSION ------- Flight Unit Flight Unit > --- UTILITY ---------- (None) > --- WEAPON ----------- Rocket Launcher > --- INVENTORY -------- Rocket Launcher Rocket Launcher Rocket Launcher [Rating: 4] Favorites ----------- Power None Propulsion Flight Unit Flight Unit Flight Unit Utility None Weapon Rocket Launcher Launcher Rocket Launcher Build | -11 -10 -10 -10 -9 ------- Run | Jun Mat Min Exi Min Slots Evolved . | . . . . . Power . | . . . . . Propulsion . | . . . . . Utility . | . . . . . Weapon . | . . . . . Parts Attached 4 | . . 3 . 1 Power . | . . . . . Engine . | . . . . . Core . | . . . . . Reactor . | . . . . . Propulsion 2 | . . 2 . . Treads . | . . . . . Leg . | . . . . . Wheel . | . . . . . Hover . | . . . . . Flight 2 | . . 2 . . Utility . | . . . . . Device . | . . . . . Storage . | . . . . . Processor . | . . . . . Hackware . | . . . . . Protection . | . . . . . Artifact . | . . . . . Weapon 2 | . . 1 . 1 Energy Gun . | . . . . . Energy Cannon . | . . . . . Ballistic Gun . | . . . . . Ballistic Cannon . | . . . . . Launcher 2 | . . 1 . 1 Special Weapon . | . . . . . Impact Weapon . | . . . . . Slashing Weapon . | . . . . . Piercing Weapon . | . . . . . Special Melee Weapon . | . . . . . Unidentified Prototypes . | . . . . . Parts Lost 2 | . . . . 2 Power . | . . . . . Propulsion 2 | . . . . 2 Utility . | . . . . . Weapon . | . . . . . Highest Loss Streak 1 | . . . . 1 To Critical Strikes . | . . . . . Average Slot Usage (%) 18 | . . 18 28 20 Flight 18 | . . 18 28 20 Naked Turns 59 | . 41 18 . . Heaviest Build . | . . . . . Greatest Support 8 | 3 3 8 8 8 Greatest Overweight (x) . | . . . . . Average Overweight (x) . | . . . . . Largest Inventory Capacity 5 | 5 5 5 5 5 Average Capacity 5 | 5 5 5 5 5 Most Carried 4 | . 4 4 4 4 Average Carried 3 | . 3 3 4 3 Final Capacity 5 | 5 5 5 5 5 Final Carried 4 | . 4 4 4 4 Class Distribution -------------------- 100% | Mutant Dominant Class ---------------- Mutant | -10/Materials Mutant | -10/Mines Mutant | -10/Exiles Mutant | -9/Mines Resources | -11 -10 -10 -10 -9 ----------- Run | Jun Mat Min Exi Min Matter Collected 227 | 200 . 9 . 18 Remotely . | . . . . . Salvage Created 28 | . . 9 . 19 Parts 7 | . . 4 . 3 Haulers Intercepted . | . . . . . Recyclers Shooed . | . . . . . Parts Field Recycled . | . . . . . Retrieved Matter . | . . . . . Parts Self-Destructed . | . . . . . Prevented . | . . . . . Kills | -11 -10 -10 -10 -9 ------- Run | Jun Mat Min Exi Min Combat Hostiles Destroyed 6 | . . 3 . 3 AOE 6 | . . 3 . 3 Classes Destroyed 1 | . . 1 . . Swarmer 6 | . . 3 . 3 Best Kill Streak 3 | . . 3 . 3 Combat Bots Only 3 | . . 3 . 3 Max Kills in Single Turn 2 | . . 2 . 2 Gunslinging . | . . . . . Exploded 2 | . . 2 . 2 Melee . | . . . . . Uniques/NPCs Destroyed . | . . . . . Combat | -11 -10 -10 -10 -9 -------- Run | Jun Mat Min Exi Min Damage Taken 312 | . 81 19 . 212 Core 250 | . 81 19 . 150 Absorbed by Shields . | . . . . . Core Remaining (%) 100 | 100 . . . . Volleys Fired 4 | . . 2 . 2 Largest 1 | . . 1 . 1 Hottest 33 | . . 33 . 33 Shots Fired 4 | . . 2 . 2 Gun . | . . . . . Cannon . | . . . . . Launcher 4 | . . 2 . 2 Special . | . . . . . Kinetic . | . . . . . Thermal . | . . . . . Explosive 4 | . . 2 . 2 Electromagnetic . | . . . . . Robot Hit Streak . | . . . . . Robot Miss Streak . | . . . . . Penetration Max . | . . . . . Secondary Targets . | . . . . . Shots Hit Robots . | . . . . . Core Hits 7 | . . 3 . 4 Critical Kills . | . . . . . Critical Parts Destroyed . | . . . . . Critical Strikes . | . . . . . Melee Attacks . | . . . . . Impact . | . . . . . Slashing . | . . . . . Piercing . | . . . . . Sneak Attacks . | . . . . . Combat Hostiles . | . . . . . Follow-up Attacks . | . . . . . Damage Inflicted 406 | . . 180 . 226 Guns . | . . . . . Cannons . | . . . . . Explosions 406 | . . 180 . 226 Melee . | . . . . . Ramming . | . . . . . Kinetic . | . . . . . Thermal . | . . . . . Explosive 406 | . . 180 . 226 Electromagnetic . | . . . . . Impact . | . . . . . Slashing . | . . . . . Piercing . | . . . . . Highest Corruption . | . . . . . Average Corruption . | . . . . . Corruption Purged . | . . . . . Corruption Blocked . | . . . . . Overload Shots . | . . . . . Overflow Damage 2 | . . 2 . . Projectiles . | . . . . . Explosions 2 | . . 2 . . Melee . | . . . . . Knockbacks . | . . . . . Impact . | . . . . . Kinetic . | . . . . . Secondary . | . . . . . Self-Inflicted Damage . | . . . . . Shots . | . . . . . Rammed . | . . . . . Targets Rammed . | . . . . . Kicked . | . . . . . Crushed . | . . . . . Highest Temperature 2 | . . . . 2 Average Temperature 2 | . . . . 2 Received Heat Transfer 44 | . . . . 44 Siege Activations . | . . . . . Robots Corrupted . | . . . . . Combat Hostiles . | . . . . . Parts Fried . | . . . . . Impact Corruptions . | . . . . . Robots Melted . | . . . . . Combat Hostiles . | . . . . . Parts Melted . | . . . . . Heat Transferred . | . . . . . Parts Sabotaged . | . . . . . Parts Stolen . | . . . . . Parts Stripped . | . . . . . Power Chain Reactions . | . . . . . Missiles Intercepted . | . . . . . Alert | -11 -10 -10 -10 -9 ------- Run | Jun Mat Min Exi Min Peak Influence 165 | . 38 126 . 165 Initial 14 | . . 14 . . Average 69 | . 7 106 . 73 Maximum Alert Level . | . . . . . Low Security (%) 100 | 100 100 100 . 100 Level 1 . | . . . . . Level 2 . | . . . . . Level 3 . | . . . . . Level 4 . | . . . . . Level 5 . | . . . . . High Security . | . . . . . Max Security . | . . . . . Squads Dispatched 2 | . 2 . . . Investigation 2 | . 2 . . . Extermination . | . . . . . Reinforcement . | . . . . . Assault . | . . . . . Garrison . | . . . . . Intercept . | . . . . . Searches Triggered . | . . . . . Construction Impeded . | . . . . . Haulers Reinforced . | . . . . . Active Scanning Responses . | . . . . . Cargo Convoy Interrupts . | . . . . . Stealth | -11 -10 -10 -10 -9 --------- Run | Jun Mat Min Exi Min Distress Signals 1 | . . . . 1 Communications Jammed . | . . . . . Distress Signals . | . . . . . Times Spotted 19 | . . 3 . 16 Peak Tracking Total 6 | . . 3 . 6 Tactical Retreats 2 | . . . . 2 Traps | -11 -10 -10 -10 -9 ------- Run | Jun Mat Min Exi Min Traps Triggered 2 | . 2 . . . Indirectly . | . . . . . Trap Hack Attempts . | . . . . . Triggered . | . . . . . Disarmed . | . . . . . Reprogrammed . | . . . . . Reused . | . . . . . Traps Extracted . | . . . . . Installed . | . . . . . Triggered . | . . . . . Machines | -11 -10 -10 -10 -9 ---------- Run | Jun Mat Min Exi Min Machines Disabled 3 | . . 2 . 1 Max in Single Turn 2 | . . 2 . 1 Machines Repaired . | . . . . . Machines Sabotaged . | . . . . . Overloaded Fab Kills . | . . . . . Hacking | -11 -10 -10 -10 -9 --------- Run | Jun Mat Min Exi Min Machines Accessed 3 | . 2 . 1 . Terminals 1 | . 1 . . . Fabricators . | . . . . . Repair Stations . | . . . . . Recycling Units 1 | . 1 . . . Scanalyzers . | . . . . . Garrison Access . | . . . . . Total Hacks 7 | . 6 . 1 . Successful 3 | . 2 . 1 . Failed 4 | . 4 . . . Catastrophic . | . . . . . Database Lockouts . | . . . . . Manual 6 | . 6 . . . Terminals 4 | . 4 . . . Fabricators . | . . . . . Repair Stations . | . . . . . Recycling Units 2 | . 2 . . . Scanalyzers . | . . . . . Garrison Access . | . . . . . Terminal Hacks 2 | . 1 . 1 . Record 1 | . . . 1 . Branch Access Points 1 | . 1 . . . Fabricator Hacks . | . . . . . Repair Station Hacks . | . . . . . Recycling Unit Hacks . | . . . . . Scanalyzer . | . . . . . Garrison Access Hacks . | . . . . . Unauthorized Hacks 1 | . 1 . . . Terminals . | . . . . . Fabricators . | . . . . . Repair Stations . | . . . . . Recycling Units 1 | . 1 . . . Tunnel 1 | . 1 . . . Scanalyzers . | . . . . . Garrison Access . | . . . . . Data Cores Recovered . | . . . . . Used . | . . . . . Hacking Detections 1 | . 1 . . . Full Trace Events 1 | . 1 . . . Feedback Events . | . . . . . Feedback Blocked . | . . . . . Robot Schematics Acquired . | . . . . . Robots Built . | . . . . . Authchips . | . . . . . Time . | . . . . . Total Robot Build Rating . | . . . . . Part Schematics Acquired . | . . . . . Parts Built . | . . . . . Authchips . | . . . . . Time . | . . . . . Total Part Build Rating . | . . . . . Parts Repaired . | . . . . . Time . | . . . . . Parts Recycled . | . . . . . Recycled Matter . | . . . . . Retrieved Matter . | . . . . . Retrieved Components . | . . . . . Parts Scanalyzed . | . . . . . Part Schematics Acquired . | . . . . . Parts Damaged . | . . . . . Bothacking | -11 -10 -10 -10 -9 ------------ Run | Jun Mat Min Exi Min Used RIF Installer . | . . . . . Robots Hacked . | . . . . . Non-combat . | . . . . . Combat . | . . . . . Robot Hacks Applied . | . . . . . Relay Couplers Released . | . . . . . Fabnet Peak Effective % . | . . . . . Robots Rewired . | . . . . . Allies Hacked . | . . . . . Hacks Repelled . | . . . . . Allies | -11 -10 -10 -10 -9 -------- Run | Jun Mat Min Exi Min Total Allies . | . . . . . Largest Group . | . . . . . Highest-Rated Group . | . . . . . Highest-Rated Ally . | . . . . . Total Orders . | . . . . . Ally Attacks . | . . . . . Total Damage . | . . . . . Kills . | . . . . . Allies Corrupted . | . . . . . Allies Melted . | . . . . . Intel | -11 -10 -10 -10 -9 ------- Run | Jun Mat Min Exi Min Robot Analysis Total . | . . . . . Derelict Logs Recovered . | . . . . . Drone Launches . | . . . . . Drone Recoveries . | . . . . . Exploration | -11 -10 -10 -10 -9 ------------- Run | Jun Mat Min Exi Min Turns Passed 299 | 16 41 85 47 110 Spaces Moved 701 | 33 74 195 128 271 Core 141 | 33 74 33 . 1 Treads . | . . . . . Legs . | . . . . . Wheels . | . . . . . Hover . | . . . . . Flight 560 | . . 162 128 270 Fastest Speed 37 | 50 50 37 37 37 Average Speed 40 | 50 50 39 37 38 Slowest Speed 50 | 50 50 50 37 50 Overloaded Moves . | . . . . . Propulsion Burnouts . | . . . . . Robots Hopped 11 | . . 7 . 4 Cave-ins Triggered . | . . . . . Exploration Rate (%) 31 | 4 17 30 48 60 Regions Visited 4 Branch Regions 3 Pre-discovered Areas 2 | . 1 . 1 . Known Exits Taken 1 | . 1 . . . Unknown Exits Taken 3 | 1 . 1 1 . Scrap Searched 1 | . . . . 1 Spaces Dug 18 | . . 8 . 10 Terrain Destroyed 34 | . . 15 . 19 Melee . | . . . . . Projectile . | . . . . . AOE 34 | . . 15 . 19 Terrain Rammed . | . . . . . Walls Destroyed . | . . . . . Machines Disabled . | . . . . . Actions | -11 -10 -10 -10 -9 --------- Run | Jun Mat Min Exi Min Total 700 | 32 77 193 127 271 Wait . | . . . . . Move 677 | 32 73 181 127 264 Hop 9 | . . 6 . 3 Pick Up 4 | . 4 . . . Fast Attach 2 | . . 2 . . Attach 2 | . . 1 . 1 Detach 2 | . . 1 . 1 Swap . | . . . . . Drop . | . . . . . Fire 4 | . . 2 . 2 Melee . | . . . . . Ram . | . . . . . Kick . | . . . . . Crush . | . . . . . Escape Stasis . | . . . . . Rewire . | . . . . . Trap . | . . . . . Miscellaneous . | . . . . . Route ------- -11/Junkyard -10/Materials -10/Mines (discovered 3 exits: [*Mat x2] / *Exi) -10/Exiles (discovered 2 exits: [*Min x2]) -9/Mines History --------- Turn | Location | Event 2 | -11/Junkyard | Discovered new exit (range 16) 17 | -11/Junkyard | Entered Materials 36 | -10/Materials | Identified exit to Mines 58 | -10/Materials | Entered Mines 66 | -10/Mines | YI-UF0 nonchalantly dropped a Grenade Launcher on the ground 112 | -10/Mines | Discovered new exit (range 6) 117 | -10/Mines | Discovered new exit (range 7) 141 | -10/Mines | Deemed a non-threat by the Exiles lab entrance 142 | -10/Mines | Discovered new exit (range 5) 143 | -10/Mines | Entered Exiles 149 | -10/Exiles | Discovered new exit (range 15) 153 | -10/Exiles | Met 8R-AWN 159 | -10/Exiles | Met EX-HEX 175 | -10/Exiles | Met EX-DEC 175 | -10/Exiles | Learned location of Zion (-7) 186 | -10/Exiles | Discovered new exit (range 14) 190 | -10/Exiles | Entered Mines 193 | -9/Mines | Met a Derelict bent on vengeance 194 | -9/Mines | Assembled infested the area 199 | -9/Mines | Assisted by a Guerilla fighting off Assembled 257 | -9/Mines | Core integrity fell below 50% 300 | -9/Mines | Destroyed by D-53 Grenadier with Mini Grenade Launcher Last Messages --------------- 00186_ EXIT=FOUND LOCATION=UNKNOWN GOAL=ESCAPE 00194_ ALERT: Infestation in the mines, dispatching Demolisher response squad. 00199_ A derelict emerges from the shadows: "You need to get out of here! I've been tracking a group of Assembled to figure out where they're coming from, and they're closing on this area, come on!" 00241_ S-10 Pest destroyed. 00247_ The unstable cave ceiling collapses. 00247_ Flight Unit destroyed. 00264_ S-10 Pest destroyed. 00275_ Core Extractor disabled. 00293_ Searching scrap... 00293_ Found Med. Matter Pod. 00293_ Found Med. Armor Plating. 00293_ Found 18 Matter. 00294_ Acquired 18 matter. 00296_ U-05 Engineer lays Concrete. 00300_ Flight Unit destroyed. Map ----- +----------------------------------------------------+ | ????# % #??????????????????????# ???????????? | | ????## ##????????????????????? ???????????? | | ?????# *###???#########??????? ???????????? | | ?????# # %! ### ??????? ???????????? | | ###### ###%% ??????????????????????? | | # #?## ##????????????????????????????? | | # #######??" ""## ##?????????????????????????????? | | # #????????# "#"# #??????????????????????????????? | | ##???????# #" #??????????????????????????????? | | ####????## ## #??????????????????????????????? | | ##????# ## "??????????????????????????????? | | ##???# %"# # ?????????????????????????????? | | #???# ## ##?????????????????????????????? | | ### #???# ## ##???????#????????????????????? | | %##?## ##### #?????? #????????????????????? | | ###?### ## #?????? #????????????????????? | | #???# #?????? #????????????????????? | | # #???# ! ##??????d#???###??????????????? | | #??## #### #??????? #??# ##?????????????? | | # #?## ##??#! #??????? ### ####??????????? | | ### ##???# #???#### # #??????????? | | ##????# #???# #??????????? | | ##?????# #???# #????????????? | | ####??????# #???# d u## ##?????????? | | # ##?????????# ##### %???????? | | # #??????????# @ "???????? | | # ##??????????# #?????????????? | | ## ##???????????####### < ##?????????????? | | ?###??????????????????# ###??????????????? | | ??????????????????????###### ###????????????????? | | ????????????????????????????###??????????????????? | | ?????????????????????????????????????????????????? | | ?????????????????????????????????????????????????? | | ?????????????????????????????????????????????????? | | | | | | | | | | | | | | | | | | | | | | | | | | | | | | | | | +----------------------------------------------------+ Best States ------------- Heat Dissipation 25 Energy Generation 5 Energy Capacity 100 Matter Stores 300 Matter Capacity 300 Sight Range 16 Terrain Scan Density 10 Evasion (%) 62 Item Schematics ----------------- None Robot Schematics ------------------ None Fabricated ------------ Nothing Alien Tech Used ----------------- None Achievements -------------- None Challenges ------------ None Game ------ Seed GodReinforcedBeamcaster Manual? 0 Play Time 00:04:16 Cumulative 271.9 hours Start 2023.06.04 @ 15:08:13 End 2023.06.04 @ 15:11:17 Sessions 1 Manual Loads 0 Difficulty Rogue Special Mode None Game No. 805 Rogue 805 Adventurer 0 Explorer 0 Win Type - Total 15 Types 8/0/5/2/0/0/0/0/0 Lore% 89 Gallery% 86 Achievement% 77 Wizard Run 0 Options --------- ASCII 0 Keyboard 0 Movement Numpad Keybinds 0 Fullscreen 1 Font 16/SmallcapsGlow Map View 75x55 Tactical HUD 1 Map Filters NONE Filters NONE Steam 1 RUN: 81b9d215-aaf5-4c95-b986-abcf75e8686d